[Event "Olomouc Chess Summer-GM 2022"]
[Site "Olomouc"]
[Date "2022.08.17"]
[Round "6.3"]
[White "Sorm, Daniel"]
[Black "Stalmach, Richard"]
[Result "1/2-1/2"]
[ECO "B31"]
[WhiteElo "2308"]
[BlackElo "2363"]
[Annotator "TA"]
[PlyCount "68"]
[EventDate "2022.08.10"]
[EventCountry "CZE"]
[SourceTitle "playchess.com"]
[Source "ChessBase"]
[SourceQuality "1"]
[TimeControl "40/5400+30:1800+30"]

{[%evp 12,68,14,26,102,5,9,19,16,21,51,20,47,62,56,50,83,81,71,-28,-54,-117,63,82,63,63,194,166,183,187,154,0,0,-36,-44,-62,0,0,0,0,0,0,0,-4,0,0,0,0,0,0,0,0,0,0,0,0,0,0,0]} 1. e4 {[%emt 0:00:17]} c5 {[%emt 0:00:52]} 2. Nf3 {[%emt 0:00:07]} Nc6 {[%emt 0:02:22]} 3. Bb5 {[%emt 0:00:17]} g6 {[%emt 0:01:21]} 4. O-O {[%emt 0:00:19]} Bg7 {[%emt 0:00:00]} 5. Re1 {[%emt 0:00:33]} e5 {[%emt 0:07:47]} 6. b4 {[%emt 0:00:32]} cxb4 {[%emt 0:03:31]} 7. a3 {[%emt 0:00:18]} bxa3 {[%emt 0:15:50] B31: Sicilian: 2...Nc6 3 Bb5 g6.} (7... b3 $11) 8. d4 {[%emt 0:20:53]} (8. Bxa3 a6 $11) (8. Rxa3 Nge7 $15) (8. Nxa3 $16 {Nc4 is the strong threat.} a6 9. Bxc6 dxc6 10. Bb2) 8... exd4 {[%emt 0:09:36]} 9. Nxa3 {[%emt 0:04:22][%cal Bb1a3,Ba3c4,Bc4d6][%mdl 32]} Nge7 {[%emt 0:03:40]} 10. Nc4 {[%emt 0:01:53][%mdl 1024] White has compensation.} O-O {[%emt 0:02:12]} 11. Nd6 $1 {[%emt 0:01:21]} a6 {[%emt 0:03:20]} 12. e5 {[%emt 0:05:07]} Qc7 {[%emt 0:11:54][%cal Oc6e5] [#]} 13. Bg5 $146 {[%emt 0:17:09]} ({Predecessor:} 13. Bf4 Nxe5 14. Bxe5 Bxe5 15. Nxc8 Raxc8 16. Rxe5 d6 17. Rxe7 Qxe7 18. Bd3 Rc5 19. Qd2 {1-0 (37) Cuartas,J (2483)-Amigo Villalta,J (2231) Barcelona 2014}) 13... Bxe5 {[%emt 0:09:58]} 14. Nxe5 {[%emt 0:01:55]} Qxd6 {[%emt 0:01:06]} 15. Bxc6 {[%emt 0:13:11] 0x0.0005ecfa875cdp-1022s more active pieces. The black rooks are badly placed.} (15. Ng4 $1 $16 {Threatens to win with Bxc6.} f5 16. Bc4+ Kh8 17. Nh6) 15... Nxc6 $11 {[%emt 0:04:14]} (15... bxc6 $2 16. Nc4 Qc5 17. Bxe7 Qxc4 18. Qd2 $18 (18. Bxf8 Kxf8 19. Qd2 Kg7 $14)) 16. Nc4 {[%emt 0:00:26]} (16. Bf4 $15) 16... Qc7 $2 {[%emt 0:04:09]} (16... Qc5 $17 17. Bf6 b5) 17. Bh6 $14 {[%emt 0:05:55]} d5 {[%emt 0:02:12]} 18. Na5 {[%emt 0:02:32] aiming for Nxc6.} Qb6 {[%emt 0:03:04]} 19. Nxc6 $18 {[%emt 0:03:03]} bxc6 {[%emt 0:00:03] [#]} 20. Rb1 $1 {[%emt 0:03:17]} Qc5 {[%emt 0:00:13][%cal Oc8f5] [#]} 21. Qf3 {[%emt 0:01:10]} (21. Bxf8 Kxf8 22. Qd2 (22. Qe2 Be6 $11) 22... Bf5 $11) (21. Qd2 $1 $16 {[%cal Rd2f4] Hoping for Qf4.} Bd7 22. Qf4 (22. Bxf8 Rxf8 23. Rb4 Bf5 $11)) 21... Qd6 $11 {[%emt 0:00:20][%cal Oc8f5]} 22. Bf4 {[%emt 0:05:03]} Qf6 {[%emt 0:00:56] And now ...g5 would win.} 23. Qg3 {[%emt 0:00:02] Inhibits g5.} Qf5 {[%emt 0:01:18]} (23... Be6 $15 24. Be5 Qf5 25. Bxd4 a5) 24. Bd6 {[%emt 0:00:37] The position is equal.} Be6 {[%emt 0:01:02]} 25. Bxf8 {[%emt 0:00:54]} Rxf8 {[%emt 0:00:04]} 26. Qd6 {[%emt 0:00:13]} Qxc2 {[%emt 0:02:51]} 27. Rb8 {[%emt 0:03:49][%csl Gb8][%cal Rd6f8]} Bc8 {[%emt 0:02:08]} 28. Qc7 $1 {[%emt 0:00:12]} d3 {[%emt 0:02:25][%cal Bd4d3,Bd3d2][%mdl 32] White must now prevent ...d2.} 29. Rxc8 {[%emt 0:00:44]} d2 $1 {[%emt 0:00:13][%cal Rd2e1]} 30. Rxf8+ {[%emt 0:02:05]} Kxf8 {[%emt 0:00:06][%cal Rd2e1]} 31. Qd6+ {[%emt 0:00:39]} Kg7 {[%emt 0:00:14][%cal Rd2e1]} 32. Qe5+ {[%emt 0:00:07]} Kg8 {[%emt 0:00:04]} (32... Kh6 $5 33. Qf4+ Kg7 34. Qd4+ f6 $18) 33. Qb8+ {[%emt 0:00:14]} Kg7 {[%emt 0:00:03][%cal Rd2e1]} 34. Qe5+ {[%emt 0:00:05]} Kg8 {[%emt 0:00:43] Weighted Error Value: White=0.21 (precise) /Black=0.27 (precise)} (34... Kh6 $5 35. Qf4+ Kg7 36. Qd4+ f6 $16) 1/2-1/2

[Event "Olomouc Chess Summer-GM 2022"]
[Site "Olomouc"]
[Date "2022.08.17"]
[Round "6.4"]
[White "Krejci, Jan"]
[Black "Pap, Gyula"]
[Result "1-0"]
[ECO "D61"]
[WhiteElo "2511"]
[BlackElo "2481"]
[Annotator "TA"]
[PlyCount "71"]
[EventDate "2022.08.10"]
[EventCountry "CZE"]
[SourceTitle "playchess.com"]
[Source "ChessBase"]
[SourceQuality "1"]
[TimeControl "40/5400+30:1800+30"]

{[%evp 17,71,16,22,16,15,3,12,0,17,12,4,0,0,5,30,0,65,81,67,57,78,99,142,141,145,146,211,231,203,213,207,220,212,202,189,190,350,343,467,294,294,294,270,263,336,267,450,473,586,586,731,590,775,615,532,522]} 1. d4 {[%emt 0:00:02]} e6 {[%emt 0:00:08]} 2. c4 {[%emt 0:00:05]} d5 {[%emt 0:02:09]} 3. Nc3 {[%emt 0:00:06]} Nf6 {[%emt 0:00:20]} 4. Nf3 {[%emt 0:00:05]} Nbd7 {[%emt 0:03:04]} 5. Bg5 {[%emt 0:00:30]} Be7 {[%emt 0:04:24]} 6. e3 {[%emt 0:00:12]} O-O {[%emt 0:00:55]} 7. Qc2 {[%emt 0:02:09]} h6 {[%emt 0:09:14]} 8. Bh4 {[%emt 0:01:59]} c5 {[%emt 0:00:26]} 9. cxd5 {[%emt 0:00:25]} Nxd5 {[%emt 0:01:29]} 10. Bxe7 {[%emt 0:01:07] D61: Queen's Gambit Declined: Classical: 7 Qc2.} Nxe7 {[%emt 0:11:33]} 11. Rd1 {[%emt 0:03:55]} Qa5 {[%emt 0:03:32]} 12. Be2 {[%emt 0:08:04] The position is equal.} Nf6 {[%emt 0:09:59]} 13. O-O {[%emt 0:05:54]} cxd4 {[%emt 0:11:28]} 14. Rxd4 {[%emt 0:06:39]} Bd7 {[%emt 0:00:38]} 15. Ne4 {[%emt 0:05:05]} Ned5 {[%emt 0:04:57]} 16. b4 {[%emt 0:06:38][%cal Bb2b4,Bb4b5][%mdl 32] [#]} Qa3 $146 {[%emt 0:03:04]} (16... Qb6 $11) ({Predecessor:} 16... Qb6 17. Nxf6+ Nxf6 18. Qd3 Qc7 19. Rc4 Qb6 20. Rd4 Qc7 21. Qc4 Rfc8 22. Qxc7 Rxc7 {½-½ (59) Kunin,V (2569)-Polaczek,R (2424) Luxembourg 2017}) 17. Nxf6+ $14 {[%emt 0:03:00]} Nxf6 {[%emt 0:00:08]} 18. Ne5 $1 {[%emt 0:00:06]} Rfc8 {[%emt 0:05:32]} 19. Qd2 {[%emt 0:02:33] White is much more active. White now steadily converts the win.} Be8 {[%emt 0:01:01]} 20. Nc4 $1 $36 {[%emt 0:01:20][%mdl 2048] Keeping Black busy.} Qa4 {[%emt 0:00:44] [#]} 21. b5 $1 {[%emt 0:06:51]} Rc5 {[%emt 0:08:33] [#]} (21... Bxb5 $2 22. Nd6 Rc2 23. Bxb5) (21... Nd5 $16 22. Rb1 Bxb5) 22. Nb6 $1 $18 {[%emt 0:04:42][%mdl 512]} axb6 {[%emt 0:00:08]} 23. Rxa4 {[%emt 0:00:04]} Rxa4 {[%emt 0:00:06] [#]} 24. Bd1 $1 {[%emt 0:00:30]} Ra3 {[%emt 0:02:15]} 25. Qb2 {[%emt 0:01:43]} Rd3 {[%emt 0:01:00]} 26. a4 {[%emt 0:00:46]} Ne4 $2 {[%emt 0:02:42]} (26... Nd5 27. Re1 Nc3) 27. Qb1 {[%emt 0:07:24]} Rcd5 {[%emt 0:02:26] White must now prevent ...Nc3.} 28. Be2 {[%emt 0:02:01]} Nc3 {[%emt 0:02:26]} 29. Qc2 {[%emt 0:01:25]} ({Not} 29. Bxd3 Nxb1 30. Bxb1 Rc5 $11) 29... Nxe2+ {[%emt 0:00:46]} 30. Qxe2 {[%emt 0:00:02]} Ra3 {[%emt 0:00:23]} 31. Qc4 {[%emt 0:00:44]} g6 $2 {[%emt 0:01:23]} (31... Bd7 32. h3 Rd2) 32. h3 {[%emt 0:01:16] White is clearly winning.} h5 {[%emt 0:00:14]} 33. Qb4 {[%emt 0:07:15]} Ra2 {[%emt 0:00:58]} 34. Rc1 {[%emt 0:00:07] And now Rc8 would win.} Bd7 {[%emt 0:00:44] Prevents Rc8+.} 35. Qh4 {[%emt 0:01:53]} Kg7 {[%emt 0:00:22]} 36. Rc7 {[%emt 0:02:26] Weighted Error Value: White=0.20 (precise) /Black=0.38} 1-0

[Event "Olomouc Chess Summer-GM 2022"]
[Site "Olomouc"]
[Date "2022.08.17"]
[Round "6.5"]
[White "Frank, Adam"]
[Black "Winkelman, Albert"]
[Result "1/2-1/2"]
[ECO "C95"]
[WhiteElo "2313"]
[BlackElo "2278"]
[Annotator "TA"]
[PlyCount "178"]
[EventDate "2022.08.10"]
[EventCountry "CZE"]
[SourceTitle "playchess.com"]
[Source "ChessBase"]
[SourceQuality "1"]
[TimeControl "40/5400+30:1800+30"]

{[%evp 24,178,22,25,29,19,19,9,33,0,0,0,0,2,13,12,26,-17,-6,-11,0,0,0,-68,-86,-88,-91,-90,-92,-142,-136,-141,-133,-140,-128,-120,-54,-195,-202,-257,-209,-225,-223,-222,-218,-218,-224,-219,-228,-223,-106,-79,-74,-164,-176,-164,-164,-170,-179,-161,-155,-206,-158,-153,-156,-159,-148,-147,-148,-116,0,0,0,0,0,0,0,0,0,0,0,0,0,0,0,0,0,0,0,0,0,0,0,0,0,0,0,0,0,0,0,0,0,0,0,0,0,-4,-4,-11,0,-4,-4,-4,0,0,0,0,0,0,0,0,0,0,0,0,0,0,0,0,0,0,0,0,0,0,0,0,0,0,0,0,0,0,0,0,0,0,0,0,0,0,0,0,0,0,0]} 1. e4 e5 2. Nf3 Nc6 3. Bb5 a6 4. Ba4 Nf6 5. O-O Be7 6. Re1 b5 7. Bb3 O-O 8. h3 d6 9. c3 Nb8 10. d4 Nbd7 11. Nbd2 {[%cal Bb1d2,Bd2f1,Bf1g3][%mdl 32]} Bb7 12. Bc2 c5 13. d5 $1 {13.d5 scores better than 13.Nf1.} c4 {C95: Closed Ruy Lopez: Breyer Variation with 10 d4.} 14. Nf1 Qc7 15. Ng3 Rfb8 16. a4 (16. Nf5 $5 {[%cal Rf5e7]} Bf8 17. Qd2 $14) 16... Bc8 17. Be3 Nc5 18. Qe2 Bd7 {[%cal Rc5a4]} 19. Nd2 {[#]} Bd8 $146 {[%cal Rc5a4,Be7d8,Bd8c7,Bc7a5,Ba5b4][%mdl 32]} ({Predecessor:} 19... Nxa4 20. Bxa4 bxa4 21. Qxc4 Bd8 22. Qa2 h6 23. Rac1 Be7 24. Re2 Rb7 25. Ree1 Rab8 {½-½ (31) Vicioso Sanchez,M (2276)-Kirkov,T (2317) ICCF email 2018}) 20. f4 Nxa4 21. Bxa4 bxa4 22. fxe5 (22. Nxc4 $2 Bb5 23. fxe5 dxe5 $19) 22... dxe5 23. Qxc4 (23. Nxc4 $2 Bb5 24. Kh1 Bxc4 $19) (23. Ra2 $1 $11) 23... Rxb2 $15 24. Qxc7 Bxc7 25. Rec1 Rc8 26. c4 (26. Nc4 $142 Rb7 27. Bf2) 26... Ba5 $1 $17 27. Ngf1 Bb4 28. c5 Bb5 29. Nc4 Rb3 (29... a3 $1 $17 {[%cal Of6e4]} 30. Nfd2 Bxc5 31. Bxc5 Rxc5 32. Nxa3 Rxc1+ 33. Rxc1 g6 34. Nxb5 axb5) 30. Nd6 ({White should try} 30. Nb6 $1 $15 Rc7 31. d6) 30... Rc7 $1 $19 {aiming for ...Bxf1.} 31. Nf5 Nxe4 32. d6 Rxc5 33. Bxc5 Bxc5+ {This bishop pair is nice.} 34. Kh2 g6 $1 35. Nd2 Nxd2 ({Stronger than} 35... gxf5 36. Nxe4 Bb6 37. Nc3 $17) 36. Ne7+ {[#]} Kg7 (36... Kf8 $1 $19 37. Rxc5 Ne4) 37. Rxc5 $17 Rd3 {...Nb3 is the strong threat.} 38. Rxe5 (38. Rd5 $17 Rxd5 39. Nxd5) 38... Rxd6 39. Rd5 Nf1+ 40. Kg1 Re6 41. Nc8 Ne3 42. Rd6 (42. Rc5 $17) 42... Re8 43. Nb6 {[#]} Nc2 $1 44. Ra2 Re1+ 45. Kh2 Ne3 46. Nxa4 Bxa4 ({Better is} 46... Rc1 $17 {Threatens to win with ...h5.} 47. Nb6 f5) 47. Rxa4 {[%mdl 4096] Endgame KRR-KRN. The position is equal.} Re2 48. Raxa6 Rxg2+ 49. Kh1 Rf2 50. Ra7 h6 51. Rd3 Nf5 52. Kg1 Rf4 53. Rdd7 Nh4 54. Ra6 Rf3 55. Kh2 g5 56. Rda7 h5 57. Ra3 Rf2+ 58. Kg1 Rb2 59. Ra2 Rb1+ 60. Kh2 Kg6 61. Rf2 f6 62. Ra6 Nf5 63. Ra5 Nd6 64. Kg2 Rb3 65. Re2 Nf5 66. Rf2 Nh4+ 67. Kh2 Nf3+ 68. Kg2 g4 69. hxg4 hxg4 70. Kg3 Ne5+ 71. Kg2 Kg5 72. Re2 Kf4 73. Ra4+ ({But not} 73. Rf2+ Nf3 $15) 73... Kf5 74. Ra5 Rh3 75. Rf2+ Kg5 76. Re2 Kf4 77. Ra4+ Kf5 78. Ra5 Rc3 79. Rf2+ Kg5 80. Re2 Kf4 81. Ra4+ ({Much weaker is} 81. Rf2+ Nf3 $15) 81... Nc4 82. Re6 {Hoping for Rc6.} Rc2+ 83. Kg1 {And now Rc6 would win.} Rc1+ 84. Kf2 g3+ 85. Kg2 Rc2+ 86. Kg1 Rc1+ 87. Kg2 Rc2+ 88. Kg1 Kg5 89. Re8 Rc3 {Black had all chances to win.  Weighted Error Value: White=0.16 (very precise) /Black=0.08 (flawless)} 1/2-1/2

[Event "Olomouc Chess Summer-GM 2022"]
[Site "Olomouc"]
[Date "2022.08.18"]
[Round "7.1"]
[White "Winkelman, Albert"]
[Black "Mirzoev, Azer"]
[Result "0-1"]
[ECO "D31"]
[WhiteElo "2278"]
[BlackElo "2424"]
[Annotator "TA"]
[PlyCount "162"]
[EventDate "2022.08.10"]
[EventCountry "CZE"]
[SourceTitle "playchess.com"]
[Source "ChessBase"]
[SourceQuality "1"]
[TimeControl "40/5400+30:1800+30"]

{[%evp 24,162,0,0,16,16,34,-2,0,0,0,0,0,0,0,0,0,0,24,24,75,42,46,36,45,49,38,0,14,25,49,0,37,34,36,15,21,21,52,56,46,31,20,12,14,8,8,8,17,30,69,45,35,47,19,0,0,-141,-141,-141,-141,-141,-141,-141,-141,-235,-235,-346,-346,-346,-346,-350,-350,-874,-874,-901,-840,-896,-889,-879,-867,-825,-724,-831,-556,-549,-540,-549,-455,-373,-312,-312,-312,-538,-538,-867,-402,-11168,-312,-985,-312,-568,-568,-11208,-5047,-12570,-11208,-11567,-11382,-12845,-29941,-29967,-6653,-6034,-4941,-2614,-1539,-588,-496,-29966,-29962,-29966,-29966,-29966,-29967,-29967,-29969,-29971,-29972,-29975,-29976,-29975,-29973,-29974,-29975,-29975,-29976,-29978,-29975,-29974,-29974]} 1. d4 {[%emt 0:00:04]} d5 {[%emt 0:00:08]} 2. c4 {[%emt 0:00:07]} e6 {[%emt 0:00:07]} 3. Nc3 {[%emt 0:00:34]} Be7 {[%emt 0:02:17]} 4. Nf3 {[%emt 0:00:32]} Nf6 {[%emt 0:06:32]} 5. Bg5 {[%emt 0:00:26]} Nbd7 {[%emt 0:00:10]} 6. e3 {[%emt 0:00:27]} h6 {[%emt 0:00:06]} 7. Bh4 {[%emt 0:02:24]} O-O {[%emt 0:00:10]} 8. Bd3 {[%emt 0:02:35]} dxc4 {[%emt 0:00:31]} 9. Bxc4 {[%emt 0:00:18]} c5 {[%emt 0:00:04]} 10. O-O {[%emt 0:00:14]} a6 {[%emt 0:00:02]} 11. a4 {[%emt 0:01:11]} b6 {[%emt 0:01:29]} 12. Rc1 {[%emt 0:02:37]} Bb7 {[%emt 0:00:22]} 13. Qe2 {[%emt 0:03:24]} Qb8 {[%emt 0:06:39] D58: Queen's Gambit Declined: Tartakower Defence.} 14. Rfd1 {[%emt 0:01:19]} Re8 {[%emt 0:04:12] [#]} 15. Ba2 $146 {[%emt 0:07:00]} ({Predecessor:} 15. Bg3 Qa7 16. Ne5 Rad8 17. f4 cxd4 18. Rxd4 Bc5 19. Rd3 Nxe5 20. fxe5 Rxd3 21. Qxd3 {½-½ (42) Ternovoy,K (1862)-Chakeyeva,A (1674) Pavlodar 2014}) 15... cxd4 {[%emt 0:02:39] The position is equal.} 16. Nxd4 {[%emt 0:01:32]} Bd6 {[%emt 0:03:09]} 17. Bg3 {[%emt 0:02:30]} Bxg3 {[%emt 0:00:19]} 18. hxg3 {[%emt 0:00:09]} Nc5 {[%emt 0:10:18]} 19. b4 {[%emt 0:11:50]} Nce4 {[%emt 0:03:27]} 20. Nxe4 Bxe4 {[%emt 0:00:30]} 21. Bc4 {[%emt 0:02:52]} Qb7 {[%emt 0:05:47]} (21... Bb7 $11) 22. f3 {[%emt 0:00:57]} Bd5 {[%emt 0:00:08]} 23. Bd3 {[%emt 0:00:14] Strongly threatening b5.} e5 {[%emt 0:22:52]} 24. Nf5 {[%emt 0:00:07]} Red8 {[%emt 0:00:21] Inhibits Nd6.} ({Weaker is} 24... e4 25. fxe4 Bxe4 26. Nd6 Bxd3 27. Rxd3 $16 (27. Nxb7 $2 {is the wrong capture.} Bxe2 28. Rd4 Rxe3 $19) (27. Qxd3 Qe7 $16)) 25. e4 {[%emt 0:05:56]} (25. Bc4 {is interesting.} Be6 26. Bxe6 fxe6 27. Qa2) 25... Be6 {[%emt 0:00:05]} (25... Bb3 $5 {[%cal Rb3d1]}) 26. Ne3 {[%emt 0:00:37]} Rd4 {[%emt 0:11:03]} 27. Rb1 {[%emt 0:05:09]} (27. Bc4 $14) 27... Qa7 {[%emt 0:02:57]} 28. Kh2 {[%emt 0:05:34]} a5 {[%emt 0:00:19]} 29. Nc2 {[%emt 0:02:22]} Rdd8 {[%emt 0:00:49]} 30. Bb5 {[%emt 0:00:11]} Qc7 {[%emt 0:02:56]} 31. bxa5 {[%emt 0:01:07]} bxa5 {[%emt 0:00:09]} 32. Ne3 {[%emt 0:01:03]} Rac8 {[%emt 0:02:42]} 33. Qb2 {[%emt 0:01:26]} Qc5 {[%emt 0:01:53]} 34. Rxd8+ {[%emt 0:04:22]} Rxd8 {[%emt 0:00:16]} 35. Qc1 {[%emt 0:00:13]} Qa7 {[%emt 0:02:11]} 36. Qe1 {[%emt 0:01:54]} Ne8 {[%emt 0:02:04]} 37. Bxe8 {[%emt 0:01:02]} Rxe8 {[%emt 0:00:03]} 38. Rb5 {[%emt 0:00:09]} Ra8 {[%emt 0:00:30]} 39. Rxe5 {[%emt 0:12:25]} Qd4 {[%emt 0:00:11][%csl LRa4,LRe5] Prevents Qc3.} 40. Rxa5 {[%emt 0:00:04] Black continues to play with concentration.} (40. f4 $11) 40... Rxa5 $17 {[%emt 0:01:11]} 41. Qxa5 {[%emt 0:30:09]} Qxe3 {[%emt 0:30:03]} 42. Qa8+ {[%emt 0:00:10]} Kh7 {[%emt 0:00:11]} 43. a5 {[%emt 0:00:18] [#]} Bc4 {[%emt 0:01:18]} 44. a6 {[%emt 0:06:25] [#]} (44. Qc8 $17 {keeps fighting.} Qe2 45. Qc5) 44... Bf1 $1 $19 {[%emt 0:00:00] ( -> ...Qd2)} ({And not} 44... Qa3 45. a7 $11) 45. Qc8 {[%emt 0:00:08]} (45. Qd5 {only move.} Qa7 46. Qf5+ g6 47. Qd5) 45... Qa7 {[%emt 0:00:00]} 46. Qf5+ {[%emt 0:10:09]} g6 {[%emt 0:00:00]} 47. Qf6 {[%emt 0:00:05]} Bxa6 {[%emt 0:00:00]} 48. g4 $2 {[%emt 0:00:10]} (48. Qa1) 48... Bc4 {[%emt 0:00:00]} 49. Qe5 {[%emt 0:02:13]} Qa2 {[%emt 0:00:00]} 50. Kg1 {[%emt 0:00:39]} Qd2 {[%emt 0:00:00]} 51. Qc7 {[%emt 0:01:59]} Qd4+ {[%emt 0:00:00]} 52. Kh2 {[%emt 0:00:08]} Be6 {[%emt 0:00:00]} 53. Qf4 {[%emt 0:00:13]} Kg7 {[%emt 0:00:00]} 54. Qg3 {[%emt 0:00:33]} Qf6 {[%emt 0:00:00]} 55. Qc7 {[%emt 0:01:14]} h5 {[%emt 0:00:00]} 56. gxh5 {[%emt 0:00:07]} Qh4+ {[%emt 0:00:00]} 57. Kg1 {[%emt 0:00:09]} Qxh5 {[%emt 0:00:00]} 58. Qc3+ $2 {[%emt 0:00:16]} (58. g4 Qb5 59. Qc3+ Kh7 60. Kf2) 58... Kh7 {[%emt 0:00:00] Threatens to win with ...Qh6.} 59. Qc7 {[%emt 0:00:52]} Qh6 {[%emt 0:00:00] White must now prevent ...Qe3+.} 60. Qe5 {[%emt 0:00:38]} (60. g4 $142) 60... Qh4 $2 {[%emt 0:00:00]} (60... Qc1+ 61. Kh2 Qe3) 61. Qc7 $2 {[%emt 0:00:26]} (61. g4) 61... Kg7 $2 {[%emt 0:00:00]} (61... Qe1+ 62. Kh2 g5) 62. Qe5+ $2 {[%emt 0:00:15]} (62. g4) 62... Qf6 63. Qc7 {[%emt 0:00:50]} g5 {[%emt 0:00:00]} 64. Qc5 {[%emt 0:02:37]} Qf4 {[%emt 0:00:00]} 65. Qd4+ {[%emt 0:00:10]} Kh7 {[%emt 0:00:00]} 66. Qd3 {[%emt 0:00:41]} g4 {[%emt 0:00:00]} 67. Kf2 {[%emt 0:01:49]} Qh2 {[%emt 0:00:00]} (67... g3+ $142 68. Ke2 Qc1 69. Qd2 Bc4+ 70. Ke3 Qxd2+ 71. Kxd2 Kg6 72. f4 Bf1 73. Ke3 Bxg2 74. f5+ Kg5 75. f6 Bh1 76. e5 Kf5 77. e6 Kxe6 78. Ke2 Kxf6 79. Kf1 g2+ 80. Kg1 Kf5 81. Kh2 Ke4 82. Kg1 Ke3 83. Kh2 Kf2 84. Kh3 g1=Q 85. Kh4 Bf3 86. Kh3 Qh1#) 68. fxg4 {[%emt 0:01:42]} Qh4+ {[%emt 0:00:00]} 69. Kg1 {[%emt 0:00:15]} Qxg4 {[%emt 0:00:00]} 70. Qe3 {[%emt 0:00:31]} Kg6 {[%emt 0:00:00]} 71. e5 {[%emt 0:00:31]} (71. Kf2 $19) 71... Kf5 {[%emt 0:00:00] Black mates.} 72. Qf2+ {[%emt 0:00:20]} Qf4 {[%emt 0:00:00]} 73. Qc2+ {[%emt 0:00:18]} Kxe5 {[%emt 0:00:00]} 74. Qc7+ {[%emt 0:00:13]} Kf5 {[%emt 0:00:00]} 75. Qc5+ {[%emt 0:00:16]} Qe5 {[%emt 0:00:00]} 76. Qf2+ {[%emt 0:00:05]} Kg6 {[%emt 0:00:00]} 77. Qb6 {[%emt 0:00:45]} Kg7 {[%emt 0:00:00]} 78. Qf2 {[%emt 0:00:13]} Bd5 {[%emt 0:00:00]} 79. Qd2 {[%emt 0:00:31]} Kg6 {[%emt 0:00:00]} 80. Qf2 {[%emt 0:00:45]} Qg5 {[%emt 0:00:00]} 81. Qc2+ {[%emt 0:01:09]} Kh6 {Weighted Error Value: White=0.34/Black=0.08 (flawless)} 0-1

[Event "Olomouc Chess Summer-GM 2022"]
[Site "Olomouc"]
[Date "2022.08.18"]
[Round "7.2"]
[White "Pap, Gyula"]
[Black "Frank, Adam"]
[Result "1/2-1/2"]
[ECO "B51"]
[WhiteElo "2481"]
[BlackElo "2313"]
[Annotator "TA"]
[PlyCount "34"]
[EventDate "2022.08.10"]
[EventCountry "CZE"]
[SourceTitle "playchess.com"]
[Source "ChessBase"]
[SourceQuality "1"]
[TimeControl "40/5400+30:1800+30"]

{[%evp 9,34,5,18,13,5,0,0,0,10,-14,29,0,0,7,28,5,8,6,10,9,7,11,17,12,18,17,12]} 1. e4 {[%emt 0:00:04]} c5 {[%emt 0:00:05]} 2. Nf3 {[%emt 0:00:13]} d6 {[%emt 0:00:04]} 3. Bb5+ {[%emt 0:04:19]} Nd7 {[%emt 0:00:08]} 4. c4 {[%emt 0:01:55]} Ngf6 {[%emt 0:00:31]} 5. Nc3 {[%emt 0:00:23]} g6 {[%emt 0:00:24]} 6. O-O {[%emt 0:00:45] B51: Sicilian: Moscow Variation (3 Bb5+) without 3...Bd7.} Bg7 {[%emt 0:00:12]} 7. d4 {[%emt 0:00:56]} cxd4 {[%emt 0:00:04]} 8. Nxd4 {[%emt 0:00:06]} O-O {[%emt 0:01:14]} 9. Ba4 {[%emt 0:01:58]} (9. Bxd7 $5 Bxd7 10. b3 $11) 9... a6 {[%emt 0:14:19]} (9... Qb6 {is interesting.} 10. Ndb5 Ne5 11. Be3 Qa5) 10. h3 {[%emt 0:07:11]} Qc7 {[%emt 0:19:09]} 11. Bb3 {[%emt 0:08:09] [#]} e5 $146 {[%emt 0:04:22]} ({Predecessor:} 11... e6 12. Be3 b6 13. Rc1 Bb7 14. Bc2 Rac8 15. Bb1 Qb8 16. b3 Qa8 17. Nde2 d5 18. exd5 exd5 19. cxd5 {1-0 (30) Tsydypov,Z (2529)-Sorokin,A (2486) Sochi 2017}) 12. Nc2 {[%emt 0:04:22]} Nb6 {[%emt 0:00:04] The position is equal.} 13. Bg5 {[%emt 0:08:00]} Be6 {[%emt 0:14:06]} 14. Ne3 {[%emt 0:00:22]} h6 {[%emt 0:01:53]} 15. Bxf6 {[%emt 0:23:09]} Bxf6 {[%emt 0:00:05]} 16. Ncd5 {[%emt 0:01:21]} Nxd5 {[%emt 0:02:02]} 17. Nxd5 {[%emt 0:00:09]} Bxd5 {[%emt 0:00:04] Not much happened in this game.  Weighted Error Value: White=0.06 (flawless) /Black=0.05 (flawless)} 1/2-1/2